bitfinex-derivatives/quotes_SOLF0:USTF0_20240830
["timestamp","ask_amount","ask_price","bid_price","bid_amount"]
[1725056388353,5.06907203,137.34,137.32,3.6413]
[1725056388850,5.06907203,137.34,137.31,3.69154663]
[1725056390454,3.641,137.33,137.31,3.69154663]
[1725056394757,3.68817203,137.34,137.32,3.6413]
[1725056398857,0.04737203,137.34,137.31,9.00014663]
[1725056399358,3.68827203,137.34,137.32,3.6413]
[1725056402060,3.6412,137.33,137.31,3.69154663]
[1725056402257,0.04737203,137.34,137.31,0.05014663]
[1725056402760,3.641,137.33,137.31,0.05014663]
[1725056402950,8.99737203,137.34,137.31,0.05014663]
[1725056403269,3.6423,137.29,137.26,3.6427]
[1725056403453,3.6423,137.29,137.25,8.95]
[1725056403653,1.3129,137.32,137.25,8.95]
[1725056403855,1.3478,137.35,137.27,8.95]
[1725056404056,0.04859668,137.32,137.3,0.05181714]
[1725056404253,3.6415,137.31,137.3,0.05181714]
[1725056417759,3.6424,137.28,137.26,8.95]
[1725056418158,8.95,137.34,137.26,8.95]
[1725056418159,8.95,137.34,137.26,12.5927]
[1725056418364,3.6422,137.29,137.26,12.5927]
[1725056418771,3.69629137,137.29,137.26,12.5927]
[1725056419277,3.69629137,137.29,137.27,3.6426]
[1725056420373,0.05409137,137.29,137.26,8.95]
[1725056421363,3.69629137,137.29,137.27,3.6426]
[1725056428975,3.6794414,137.28,137.21,3.69266572]
[1725056429275,0.05116198,137.26,137.25,8.95]
[1725056431507,3.69406198,137.26,137.25,8.95]
[1725056432768,0.05116198,137.26,137.22,3.6438]
[1725056433075,8.6783,137.32,137.22,8.95]
[1725056433076,0.05478704,137.25,137.22,8.95]
[1725056433370,3.77000341,137.25,137.22,8.95]
[1725056433602,0.0474129,137.25,137.22,8.95]
[1725056434179,3.6437,137.23,137.22,8.95]
[1725056434775,3.62649063,137.25,137.22,8.95]
[1725056434974,3.6435,137.24,137.23,8.95]
[1725056436094,3.62649063,137.25,137.19,3.6444]
[1725056436377,0.0555511,137.22,137.2,8.95]
[1725056436680,3.6444,137.21,137.2,8.95]
[1725056437595,0.0555511,137.22,137.2,8.95]
[1725056438275,3.6996511,137.22,137.2,8.95]
[1725056439784,3.6996511,137.22,137.2,12.5944]
[1725056441283,3.6996511,137.22,137.21,5.69200022]
[1725056441783,6.3414511,137.22,137.21,1.38380022]
[1725056443386,2.6973511,137.22,137.13,0.3107]
[1725056443586,0.05165417,137.19,137.15,8.95]
[1725056444088,3.6449,137.19,137.16,14.30449182]
[1725056445181,3.6451,137.18,137.16,10.71338618]
[1725056446292,3.6451,137.18,137.16,14.35878618]
[1725056447212,3.69858694,137.19,137.16,14.35878618]
[1725056448086,3.69858694,137.19,137.16,3.69969436]
[1725056449787,0.05368694,137.19,137.18,8.95]
[1725056450691,0.05368694,137.19,137.18,12.595]
[1725056452486,0.05368694,137.19,137.18,3.645]
[1725056460982,0.05368694,137.19,137.16,0.05429436]
[1725056461789,3.69848694,137.19,137.16,3.69969436]
[1725056467090,3.69848694,137.19,137.17,3.6451]
[1725056471496,3.645,137.18,137.16,0.05429436]
[1725056471805,9.00368694,137.19,137.16,0.05429436]
[1725056473298,3.6452,137.17,137.16,0.05429436]
[1725056477808,8.95,137.17,137.06,1.32925803]
[1725056478013,8.95,137.17,137.11,3.6467]
[1725056478209,10.3372,137.16,137.11,3.6467]
[1725056478405,3.6464,137.13,137.11,3.6467]
[1725056478901,3.69367394,137.13,137.11,3.6467]
[1725056481314,0.04727394,137.13,137.11,3.6467]
[1725056482109,3.69357394,137.13,137.11,3.6467]
[1725056484012,3.6466,137.12,137.07,8.95]
[1725056484247,8.99727394,137.13,137.06,12.52746992]
[1725056484420,0.05157011,137.11,137.08,3.6474]
[1725056486344,3.6471,137.1,137.08,3.6474]
[1725056486512,0.05157011,137.11,137.05,6.37579274]
[1725056486721,0.05157011,137.11,137.05,2.7965]
[1725056487128,3.6475,137.09,137.06,3.648]
[1725056488234,3.6477,137.08,137.06,3.648]
[1725056490224,3.6475,137.09,137.04,8.95]
[1725056490427,1.3927,137.11,137.08,3.6476]
[1725056490729,1.43932539,137.11,137.08,3.6476]
[1725056490931,5.08632539,137.11,137.08,3.6476]
[1725056491430,10.38932539,137.11,137.05,3.72747829]
[1725056491728,8.95,137.1,137.03,10.3345]
[1725056491931,0.04589206,137.08,137.06,3.648]
[1725056501140,8.99589206,137.08,137.02,1.382]
[1725056501344,8.95,137.07,137.0,8.95]
[1725056501531,0.04763028,137.05,137.0,8.95]
[1725056503530,0.04763028,137.05,137.03,3.6488]
[1725056503737,3.69613028,137.05,137.03,3.6488]
[1725056505342,3.69613028,137.05,137.02,3.6491]
[1725056505835,3.69613028,137.05,137.03,3.6489]
[1725056506236,8.95,137.04,136.99,1.3574]
[1725056506439,8.95,137.02,136.99,3.6499]
[1725056506643,9.00619579,137.02,136.99,3.6499]
[1725056507046,3.6495,137.01,136.98,3.6502]
[1725056508639,3.6498,137.0,136.98,3.6502]
[1725056508842,8.95,137.01,136.94,2.6914]
[1725056509144,3.70610173,136.99,136.94,6.33731695]
[1725056509345,3.70610173,136.99,136.96,3.6508]
[1725056510542,3.70610173,136.99,136.94,5.02929857]
[1725056510747,0.05590173,136.99,136.94,5.02929857]
[1725056510950,0.05590173,136.99,136.94,1.3728]
[1725056511150,0.05590173,136.99,136.97,3.6505]
[1725056514056,3.70590173,136.99,136.97,3.6505]
[1725056516752,0.05590173,136.99,136.94,4.944325]
[1725056516951,0.05590173,136.99,136.95,8.95]
[1725056519357,0.05590173,136.99,136.98,3.6503]
[1725056520948,0.05590173,136.99,136.97,3.6505]
[1725056523858,0.05590173,136.99,136.98,3.6503]
[1725056524365,1.3225,137.05,136.98,8.95]
[1725056524568,4.9711,137.05,136.98,8.95]
[1725056524863,8.68096,137.05,136.98,8.95]
[1725056525060,8.68096,137.05,137.02,3.649]
[1725056525364,8.95,137.04,137.02,0.05229151]
[1725056526116,12.5988,137.04,137.02,0.05229151]
[1725056528066,12.5988,137.04,137.02,3.70149151]
[1725056530365,3.649,137.03,137.02,0.05229151]
[1725056539458,12.599,137.03,137.02,0.05229151]
[1725056541570,3.649,137.03,137.02,0.05229151]
[1725056542670,0.04601164,137.05,137.02,0.05229151]
[1725056543170,3.61068144,137.04,137.02,0.05229151]
[1725056543360,7.25948144,137.04,137.02,3.70139151]
[1725056544869,3.61068144,137.04,137.02,3.70139151]
[1725056545070,3.61068144,137.04,137.03,3.649]
[1725056547676,0.04601164,137.05,137.02,0.05229151]
[1725056548084,0.04601164,137.05,137.04,3.6487]
[1725056554287,4.0259,137.14,137.04,8.95]
[1725056554482,12.9759,137.14,137.06,8.95]
[1725056554684,2.699,137.14,137.07,12.65258243]
[1725056554884,3.6465,137.13,137.1,3.647]
[1725056555402,3.69599436,137.13,137.1,3.69583677]
[1725056555687,0.04949436,137.13,137.11,3.6468]
[1725056556979,3.6466,137.12,137.1,0.04883677]
[1725056557894,3.69589436,137.13,137.1,0.04883677]
[1725056558975,3.69589436,137.13,137.1,3.69583677]
[1725056562679,0.04949436,137.13,137.11,3.6466]
[1725056563680,3.69589436,137.13,137.11,3.6466]
[1725056566812,3.69589436,137.13,137.1,3.69583677]
[1725056567587,3.6466,137.12,137.1,3.69583677]
[1725056570586,0.04949436,137.13,137.1,0.04883677]
[1725056570791,0.04949436,137.13,137.12,3.6466]
[1725056572998,3.69579436,137.13,137.11,3.6467]
[1725056576601,0.04949436,137.13,137.12,3.6466]
[1725056577001,11.5678,137.19,137.12,8.95]
[1725056577205,1.299,137.19,137.12,8.95]
[1725056577504,10.3492,137.22,137.14,8.95]
[1725056577701,3.64521067,137.21,137.14,8.95]
[1725056578099,0.05164549,137.19,137.17,3.6452]
[1725056579898,3.69634549,137.19,137.17,3.6452]
[1725056580805,12.64634549,137.19,137.16,3.69221578]
[1725056582300,12.64634549,137.19,137.17,3.6452]
[1725056585406,3.6452,137.17,137.16,0.04691578]
[1725056585606,12.5952,137.17,137.16,0.04691578]
[1725056606726,8.95,137.17,137.06,1.4105]
[1725056606919,8.95,137.13,137.06,10.3605]
[1725056607123,12.66937882,137.13,137.06,10.3605]
[1725056607724,0.05387515,137.11,137.09,0.05053356]
[1725056608331,0.05387515,137.11,137.1,3.6471]
[1725056608841,0.05387515,137.11,137.09,0.05053356]
[1725056610033,3.70087515,137.11,137.09,3.69783356]
[1725056613334,3.70087515,137.11,137.09,0.05053356]
[1725056614131,3.6471,137.1,137.09,0.05053356]
[1725056620236,9.00387515,137.11,136.99,1.3169]
[1725056620237,44.80387515,137.11,137.03,3.6487]
[1725056620541,8.95,137.06,137.03,3.6487]
[1725056621234,12.66793027,137.06,137.03,3.6980715]
[1725056621434,3.6486,137.05,137.03,3.6980715]
[1725056621839,3.69737327,137.06,137.03,3.6980715]
[1725056622429,3.69737327,137.06,137.03,0.0493715]
[1725056622635,3.69737327,137.06,137.04,3.6487]
[1725056623134,3.6484,137.05,137.03,3.6982715]
[1725056627342,3.67459081,137.06,137.05,3.6484]
[1725056627343,0.04907327,137.06,137.05,3.6484]
[1725056628344,0.04907327,137.06,137.05,12.5984]
[1725056629854,0.04907327,137.06,137.05,3.6484]
[1725056657970,0.04907327,137.06,137.05,12.5984]
[1725056658865,1.3094,137.12,137.1,3.6471]
[1725056659074,4.90192494,137.12,137.1,3.6471]
[1725056659366,4.90192494,137.12,137.07,8.95]
[1725056659567,11.715,137.16,137.09,8.95]
[1725056659861,11.715,137.16,137.11,0.04652777]
[1725056659862,0.05345845,137.14,137.11,0.04652777]
[1725056660064,0.05345845,137.14,137.12,3.6464]
[1725056664173,0.05345845,137.14,137.13,3.6463]
[1725056667481,0.05345845,137.14,137.13,12.5963]
[1725056669391,0.05345845,137.14,137.13,3.6463]
[1725056687603,94.17514409,137.2,137.17,3.6451]
[1725056687797,94.17514409,137.2,137.17,12.5951]
[1725056688540,97.81974409,137.2,137.17,12.5951]
[1725056688805,97.87234765,137.2,137.17,12.64533215]
[1725056690110,97.87234765,137.2,137.18,3.6449]
[1725056691005,94.22774765,137.2,137.18,3.6449]
[1725056694898,0.05260356,137.2,137.19,3.6447]
[1725056700906,0.05260356,137.2,137.17,0.05023215]
[1725056701512,3.69710356,137.2,137.18,3.6449]
[1725056701716,0.05260356,137.2,137.17,0.05023215]
[1725056702213,0.05260356,137.2,137.19,3.6447]
[1725056702713,3.69720356,137.2,137.18,3.6448]
[1725056702916,0.05260356,137.2,137.18,3.6448]
[1725056707622,3.69710356,137.2,137.18,3.6448]
[1725056709418,3.69710356,137.2,137.17,0.05023215]
[1725056709419,3.6449,137.19,137.17,0.05023215]
[1725056710120,3.645,137.18,137.17,0.05023215]
[1725056719331,0.05260356,137.2,137.17,9.00023215]
[1725056719525,0.05260356,137.2,137.18,8.95]
[1725056720332,0.05260356,137.2,137.19,3.6447]
[1725056724629,3.69710356,137.2,137.18,3.6448]
[1725056725034,0.05260356,137.2,137.17,0.05023215]
[1725056725238,0.05260356,137.2,137.18,3.6448]
[1725056727738,0.05260356,137.2,137.17,0.05023215]
[1725056728241,3.6449,137.19,137.17,0.05023215]
[1725056728537,0.05260356,137.2,137.17,0.05023215]
[1725056728739,3.645,137.18,137.17,0.05023215]
[1725056728940,8.95,137.17,137.09,61.17801758]
[1725056729136,8.95,137.16,137.09,3.6474]
[1725056729341,3.6467,137.12,137.09,3.6474]
[1725056730044,3.69716419,137.12,137.09,3.70273448]
[1725056730544,0.05046419,137.12,137.1,3.6471]
[1725056734650,3.69706419,137.12,137.1,3.6471]
[1725056736854,3.69706419,137.12,137.09,3.70253448]
[1725056737154,0.05046419,137.12,137.09,0.05533448]
[1725056737850,3.647,137.11,137.09,0.05533448]
[1725056738852,3.6471,137.1,137.09,0.05533448]
[1725056739942,3.647,137.11,137.09,0.05533448]
[1725056740893,3.647,137.11,137.09,3.70263448]
[1725056744655,3.647,137.11,137.09,0.05533448]
[1725056745556,3.6471,137.1,137.09,0.05533448]
[1725056750058,1.45966419,137.12,137.09,0.05533448]
[1725056750651,5.10636419,137.12,137.09,3.70253448]
[1725056752764,3.6471,137.1,137.09,0.05533448]
[1725056752964,1.45966419,137.12,137.09,0.05533448]
[1725056754365,3.647,137.11,137.09,3.70263448]
[1725056760374,3.6471,137.1,137.09,0.05533448]
[1725056760558,16.32267672,137.1,137.09,0.05533448]
[1725056760764,12.5971,137.1,137.09,0.05533448]
[1725056761269,16.29996631,137.1,137.09,0.05533448]
[1725056762272,3.6471,137.1,137.09,0.05533448]
[1725056763167,5.0127,137.11,137.09,0.05533448]
[1725056764267,5.0127,137.11,137.09,3.70263448]
[1725056765064,1.3657,137.11,137.09,3.70263448]
[1725056765974,5.0126,137.11,137.09,3.70263448]
[1725056766962,3.6469,137.11,137.09,3.70263448]
[1725056769770,3.6469,137.11,137.09,0.05533448]
[1725056770769,3.6469,137.11,137.09,3.70273448]
[1725056775078,3.6471,137.1,137.09,0.05533448]
[1725056783128,0.05046419,137.12,137.09,9.00533448]
[1725056783472,0.05046419,137.12,137.1,3.6471]
[1725056783975,0.05046419,137.12,137.09,3.70253448]
[1725056784179,0.05046419,137.12,137.09,0.05533448]
[1725056784372,9.00046419,137.12,137.09,0.05533448]
[1725056784785,3.6471,137.1,137.09,0.05533448]
[1725056799895,7.22779498,137.1,137.09,0.05533448]
[1725056816518,3.6471,137.1,137.09,0.05533448]
[1725056817116,7.29725708,137.1,137.09,0.05533448]
[1725056824222,3.6471,137.1,137.09,0.05533448]
[1725056825031,7.27219117,137.1,137.09,0.05533448]
[1725056825824,3.6471,137.1,137.09,0.05533448]
[1725056826320,1.3424,137.11,137.09,0.05533448]
[1725056827424,3.6471,137.1,137.09,0.05533448]
[1725056827628,7.23352716,137.1,137.09,0.05533448]
[1725056828436,0.05046419,137.12,137.09,0.05533448]
[1725056829526,0.05046419,137.12,137.1,3.6471]
[1725056829832,0.05046419,137.12,137.09,0.05533448]
[1725056830429,3.69716419,137.12,137.1,3.6471]
[1725056831232,0.05046419,137.12,137.1,3.6471]
[1725056832838,0.05046419,137.12,137.09,0.05533448]
[1725056834330,0.05046419,137.12,137.11,3.6468]
[1725056836032,1.3796,137.19,137.11,8.95]
[1725056836333,1.3796,137.19,137.13,8.95]
[1725056837126,0.05125588,137.17,137.15,0.04973018]
[1725056837326,3.69655588,137.17,137.15,3.69533018]
[1725056837983,7.40143446,137.17,137.15,3.69533018]
[1725056838132,3.69655588,137.17,137.15,3.69533018]
[1725056838331,0.05125588,137.17,137.16,3.6455]
[1725056838934,12.5943,137.21,137.18,3.6447]
[1725056839139,8.95,137.23,137.16,8.95]
[1725056839335,8.95,137.23,137.11,3.65091518]
[1725056839545,13.9336012,137.24,137.17,8.95]
[1725056840074,0.05302394,137.22,137.19,0.05527214]
[1725056840843,3.6431,137.26,137.2,8.95]
[1725056841537,3.6431,137.26,137.23,3.6436]
[1725056841731,3.6427,137.27,137.23,3.69910722]
[1725056841935,0.05084213,137.26,137.23,3.69910722]
[1725056842441,3.69384213,137.26,137.23,3.69910722]
[1725056842648,3.69384213,137.26,137.23,0.05550722]
[1725056843031,12.64384213,137.26,137.23,0.05550722]
[1725056843631,12.64384213,137.26,137.23,3.69910722]
[1725056844529,0.05084213,137.26,137.24,3.6432]
[1725056844736,9.00084213,137.26,137.23,0.05550722]
[1725056845337,12.64384213,137.26,137.23,3.69900722]
[1725056845538,0.05084213,137.26,137.23,0.05550722]
[1725056846740,0.05084213,137.26,137.25,3.6431]
[1725056851344,0.05084213,137.26,137.24,3.6432]
[1725056856454,0.05084213,137.26,137.25,3.6431]
[1725056860652,3.69374213,137.26,137.24,3.6433]
[1725056861650,3.69374213,137.26,137.23,3.69900722]
[1725056862954,3.6431,137.25,137.23,3.69900722]
[1725056864547,3.6434,137.24,137.23,0.05550722]
[1725056883075,3.6433,137.25,137.23,0.05550722]
[1725056890481,3.6433,137.25,137.23,3.69910722]
[1725056895087,0.05084213,137.26,137.23,0.05550722]
[1725056895284,8.95,137.25,137.23,0.05550722]
[1725056896281,3.6434,137.24,137.23,0.05550722]
[1725056897789,3.6433,137.25,137.23,0.05550722]
[1725056899491,3.6433,137.25,137.23,3.69910722]
[1725056908299,0.05084213,137.26,137.23,0.05550722]
[1725056909602,3.6433,137.25,137.23,0.05550722]
[1725056910897,3.6434,137.24,137.23,0.05550722]
[1725056914797,3.6443,137.21,137.17,8.95]
[1725056915200,3.6443,137.21,137.18,3.6448]
[1725056915904,3.69635301,137.21,137.18,3.69532757]
[1725056917206,3.6447,137.19,137.18,0.05052757]
[1725056922511,3.6446,137.2,137.18,0.05052757]
[1725056924613,3.6446,137.2,137.18,3.69552757]
[1725056925713,3.6446,137.2,137.18,0.05052757]
[1725056925915,3.6447,137.19,137.18,0.05052757]
[1725056938524,0.05205301,137.21,137.18,3.69542757]
[1725056938731,0.05205301,137.21,137.18,0.05052757]
[1725056939621,3.69635301,137.21,137.19,3.6447]
[1725056939829,3.69635301,137.21,137.18,0.05052757]
[1725056940918,3.69635301,137.21,137.18,3.69542757]
[1725056941431,3.6445,137.2,137.18,3.69542757]
[1725056945743,0.05205301,137.21,137.18,9.00052757]
[1725056946251,0.05205301,137.21,137.2,3.6444]
[1725056947442,3.6445,137.2,137.18,0.05052757]
[1725056947753,0.05205301,137.21,137.18,0.05052757]
[1725056948239,0.05205301,137.21,137.19,3.6445]
[1725056951167,0.05205301,137.21,137.2,3.6444]
[1725056954546,0.05205301,137.21,137.2,12.5944]
[1725056955149,10.3816,137.28,137.24,3.6433]
[1725056955150,3.643,137.26,137.24,3.6433]
[1725056955857,3.643,137.26,137.23,3.6435]
[1725056956254,3.69604192,137.26,137.23,3.6985126]
[1725056957748,9.00304192,137.26,137.23,0.0550126]
[1725056958358,3.6433,137.25,137.23,0.0550126]
[1725056963457,3.6433,137.25,137.23,3.6986126]
[1725056965564,0.05304192,137.26,137.25,3.6431]
[1725056971580,224.1213,137.34,137.29,3.6419]
[1725056971879,8.95,137.34,137.26,8.95]
[1725056972064,3.6415,137.32,137.28,3.6423]
[1725056972465,3.6415,137.32,137.26,8.95]
[1725056972770,0.05505085,137.3,137.29,3.642]
[1725056974172,0.05505085,137.3,137.28,0.05374459]
[1725056974478,3.69695085,137.3,137.28,0.05374459]
[1725056976966,3.6421,137.29,137.28,0.05374459]
[1725056977966,3.69695085,137.3,137.28,0.05374459]
[1725056978893,3.69695085,137.3,137.28,3.69604459]
[1725056979066,0.05505085,137.3,137.28,3.69604459]
[1725056983268,3.69705085,137.3,137.28,0.05374459]
[1725056983466,0.05505085,137.3,137.28,0.05374459]
[1725056983869,3.6421,137.29,137.28,0.05374459]
[1725056986776,4.9357,137.29,137.28,0.05374459]
[1725056991279,1.2936,137.29,137.28,0.05374459]
[1725056992182,1.2936,137.29,137.28,3.69604459]
[1725056992381,1.2936,137.29,137.28,0.05374459]
[1725056996887,3.69695085,137.3,137.28,0.05374459]
[1725056997883,0.05505085,137.3,137.28,3.69604459]
[1725056998787,3.69695085,137.3,137.28,3.69604459]
[1725056998987,3.69695085,137.3,137.28,0.05374459]
[1725056999997,3.69695085,137.3,137.28,3.69594459]
[1725057000191,3.69695085,137.3,137.28,0.05374459]
[1725057000386,3.6421,137.29,137.28,0.05374459]
[1725057002788,3.643,137.26,137.23,3.6435]
[1725057003687,3.69627916,137.26,137.23,3.6962012]
[1725057008293,3.69627916,137.26,137.24,3.6434]
[1725057010688,3.60747397,137.26,137.23,0.0527012]
[1725057010891,8.95,137.24,137.23,0.0527012]
[1725057011294,12.5934,137.24,137.23,0.0527012]
[1725057012795,3.6444,137.21,137.16,8.95]
[1725057012995,10.3447,137.23,137.16,8.95]
[1725057013298,3.6444,137.21,137.17,3.645]
[1725057013490,1.3947,137.23,137.17,8.95]
[1725057013891,0.04909736,137.21,137.19,0.04671618]
[1725057014395,3.69329736,137.21,137.19,0.04671618]
[1725057014985,0.04909736,137.21,137.19,0.04671618]
[1725057015191,0.04909736,137.21,137.19,12.64131618]
[1725057017296,3.69329736,137.21,137.19,12.64131618]
[1725057018414,0.04909736,137.21,137.19,12.64131618]
[1725057018994,0.04909736,137.21,137.2,3.6444]
[1725057022497,3.69329736,137.21,137.19,3.69121618]
[1725057023307,3.6444,137.2,137.19,0.04671618]
[1725057030002,0.04909736,137.21,137.19,0.04671618]
[1725057030597,0.04909736,137.21,137.19,3.69131618]
[1725057031400,3.69339736,137.21,137.19,3.69131618]
[1725057033514,0.04909736,137.21,137.2,3.6444]
[1725057035501,1.3689,137.29,137.22,8.95]
[1725057035801,3.6427,137.27,137.22,8.95]
[1725057036198,3.6427,137.27,137.24,3.6432]
[1725057036503,0.05167833,137.26,137.24,3.6432]
[1725057036696,3.69457833,137.26,137.24,3.6432]
[1725057037711,3.69457833,137.26,137.23,3.69215254]
[1725057039305,3.69457833,137.26,137.24,3.6434]
[1725057040209,0.05167833,137.26,137.24,3.6432]
[1725057041505,3.69457833,137.26,137.24,3.6432]
[1725057050214,0.05167833,137.26,137.25,12.5931]
[1725057050414,6.46139158,137.32,137.25,8.95]
[1725057050610,6.46139158,137.32,137.28,3.6421]
[1725057051123,3.6416,137.31,137.28,3.6421]
[1725057051309,3.69234435,137.31,137.28,3.69690632]
[1725057051920,3.6418,137.3,137.28,0.05480632]
[1725057054323,3.6421,137.29,137.28,0.05480632]
[1725057056328,8.95,137.29,137.18,2.7387]
[1725057056522,8.95,137.27,137.2,8.95]
[1725057057230,3.6429,137.26,137.23,3.6434]
[1725057057420,3.69224054,137.26,137.23,3.69548138]
[1725057057620,3.69224054,137.26,137.23,0.05208138]
[1725057057829,3.69224054,137.26,137.24,3.6434]
[1725057058123,0.04934054,137.26,137.24,3.6434]
[1725057059328,3.69224054,137.26,137.24,3.6434]
[1725057061029,3.69224054,137.26,137.23,3.69558138]
[1725057061325,0.04934054,137.26,137.23,9.00208138]
[1725057061518,0.04934054,137.26,137.24,8.95]
[1725057061722,0.04934054,137.26,137.25,3.6431]
[1725057061924,0.04934054,137.26,137.25,12.5931]
[1725057063432,0.04934054,137.26,137.25,3.6431]
[1725057071034,0.04934054,137.26,137.23,0.05208138]
[1725057072335,3.6433,137.25,137.23,0.05208138]
[1725057072928,3.6434,137.24,137.23,0.05208138]
[1725057074836,3.6446,137.2,137.14,2.6906]
[1725057075039,3.6446,137.2,137.15,76.86954057]
[1725057075244,1.428,137.24,137.18,3.6448]
[1725057075245,8.95,137.23,137.18,3.6448]
[1725057075937,3.6443,137.21,137.19,0.04938829]
[1725057077433,3.6444,137.2,137.19,0.04938829]
[1725057078428,22.4,137.21,137.11,22.4]
[1725057078841,3.6452,137.18,137.15,3.6457]
[1725057079131,23.799,137.23,137.13,22.4]
[1725057079336,3.69524428,137.19,137.17,0.04889596]
[1725057084739,3.69524428,137.19,137.17,3.69409596]
[1725057089036,0.05044428,137.19,137.17,0.04889596]
[1725057089237,3.645,137.18,137.17,0.04889596]
[1725057093349,3.6458,137.15,137.1,1.3478]
[1725057094238,3.6458,137.15,137.13,3.6461]
[1725057094537,3.69911305,137.15,137.13,3.69707567]
[1725057095745,3.646,137.14,137.13,0.05097567]
[1725057096848,22.4,137.15,137.06,22.4]
[1725057097044,22.4,137.15,137.06,25.9976184]
[1725057097247,3.6472,137.1,137.05,1.331]
[1725057097745,3.6472,137.1,137.06,3.648]
[1725057097947,0.05261325,137.09,137.06,0.05110927]
[1725057098249,3.70021325,137.09,137.06,0.05110927]
[1725057098840,3.70021325,137.09,137.06,3.69910927]
[1725057099542,3.70021325,137.09,137.07,3.6479]
[1725057099750,0.05261325,137.09,137.06,0.05110927]
[1725057100337,0.05261325,137.09,137.08,3.6476]
[1725057103150,0.05261325,137.09,137.07,3.6478]
[1725057104148,0.05261325,137.09,137.08,3.6476]
[1725057113060,0.05261325,137.09,137.07,3.6478]
[1725057115359,3.70001325,137.09,137.07,3.6478]
[1725057117057,0.05261325,137.09,137.07,3.6478]
[1725057117959,0.05261325,137.09,137.08,3.6476]
[1725057118763,3.70001325,137.09,137.07,3.6478]
[1725057121571,0.05261325,137.09,137.08,3.6476]
[1725057123371,3.70001325,137.09,137.07,3.6478]
[1725057124067,3.6476,137.08,137.06,3.69920927]
[1725057124971,3.6479,137.07,137.06,0.05110927]
[1725057126263,12.6179,137.07,137.06,0.05110927]
[1725057126462,8.97,137.07,136.94,1.3482]
[1725057126673,8.97,137.03,136.97,8.97]
[1725057126970,12.6191,137.03,136.97,8.97]
[1725057127166,12.6191,137.03,137.0,3.6495]
[1725057127367,12.67139485,137.03,137.0,3.6495]
[1725057127776,3.6493,137.02,137.0,3.6495]
[1725057127973,9.02229485,137.03,136.97,8.97]
[1725057128172,0.04644092,137.01,136.97,8.97]
[1725057129073,0.04644092,137.01,137.0,3.6498]
[1725057130864,0.04644092,137.01,136.99,3.6499]
[1725057131071,0.04644092,137.01,136.97,8.97]
[1725057131673,0.04644092,137.01,136.98,8.97]
[1725057132271,0.04644092,137.01,137.0,3.6498]
[1725057135176,0.04644092,137.01,137.0,16.20158911]
[1725057135686,12.6167,137.12,137.0,48.43178911]
[1725057135881,8.97,137.11,137.03,8.97]
[1725057136185,3.73058963,137.1,137.03,8.97]
[1725057136384,8.97,137.09,137.02,8.97]
[1725057136579,0.05466384,137.07,137.04,3.69685803]
[1725057136979,0.05466384,137.07,137.04,0.04845803]
[1725057137179,0.05466384,137.07,137.05,3.6484]
[1725057137575,3.70256384,137.07,137.05,3.6484]
[1725057137770,0.05466384,137.07,137.05,3.6484]
[1725057137974,0.05466384,137.07,137.06,3.6482]
[1725057162309,0.05466384,137.07,137.04,9.01845803]
[1725057162310,9.02466384,137.07,137.04,0.04845803]
[1725057162510,8.97,137.05,137.04,0.04845803]
[1725057162704,8.97,137.05,136.94,2.8457]
[1725057163012,3.6495,137.02,136.99,3.6499]
[1725057163211,8.97,137.0,136.84,69.20862182]
[1725057163516,8.97,136.98,136.92,8.97]
[1725057163706,0.05559263,136.96,136.95,3.6511]
[1725057163907,7.33328161,136.99,136.95,3.6511]
[1725057163908,0.05098474,136.97,136.95,3.6511]
[1725057164106,0.05098474,136.97,136.93,12.53271947]
[1725057164412,0.05098474,136.97,136.96,3.6508]
[1725057164612,0.05145292,136.98,136.95,12.65089321]
[1725057165215,0.05145292,136.98,136.96,3.6508]
[1725057165911,0.05145292,136.98,136.95,3.651]
[1725057167907,0.05145292,136.98,136.94,1.3394]
[1725057168502,0.05145292,136.98,136.94,10.3094]
[1725057169216,0.05145292,136.98,136.95,3.651]
[1725057169408,0.05145292,136.98,136.94,10.3094]
[1725057170916,0.05145292,136.98,136.96,3.6508]
[1725057171309,3.70175292,136.98,136.96,3.6508]
[1725057172825,0.05145292,136.98,136.97,3.6506]